Workbook

Sheet Analisis
B2: FICHA TECNICA DEL SISTEMA AISLADO
B4: Departamento | C4: Pando | D4: =+'Las Misiones'!C3 -> Santa Cruz | E4: =+'German Busch'!C4 -> Santa Cruz | F4: =+Huacaraje!C4 -> Beni
B5: Provincia | C5: Nicolas Suarez | D5: =+'Las Misiones'!C4 -> Guarayos | E5: =+'German Busch'!C5 -> German Bush | F5: =+Huacaraje!C5 -> Itenez
B6: Sistema Eléctrico | C6: Cobija | D6: =+'Las Misiones'!C5 -> Las Misiones | E6: =+'German Busch'!C6 -> German Busch | F6: =+Huacaraje!C6 -> Huacaraje
B7: Empresa | C7: ENDE | D7: =+'Las Misiones'!C6 -> CRE Ltda. | E7: =+'German Busch'!C7 -> CRE Ltda. | F7: =+Huacaraje!C7 -> ENDE DELBENI S.A.M.
B8: Combustible | C8: Diesel | D8: =+'Las Misiones'!C7 -> Gas/Diesel | E8: =+'German Busch'!C8 -> Gas | F8: =+Huacaraje!C8 -> Diesel
B9: Consumo especifico (pc/kWh) (*) | D9: =+'Las Misiones'!C8 -> 13.23130259 | E9: =+'German Busch'!C9 -> 13.47506885
B10: Consumo especifico (lts/kWh) (*) | C10: =+Cobija!C9 -> 0.2660662575 | D10: =+'Las Misiones'!C9 -> 0.2771806554 | F10: =+Huacaraje!C9 -> 0.3657595495
B11: Energía Alternativa | C11: =+Cobija!C10 -> Solar
B12: Potencia Instalada MW | C12: =+Cobija!C11 -> 5.1
B13: Potencia a Temp. Media (MW) | C13: =+Cobija!C12 -> 5.1
B14: % Crecimiento Acumulativo Anual (**) | C14: =+Cobija!C13 -> 0.0497491461 | D14: =+'Las Misiones'!C10 -> 0.06255341609 | E14: =+'German Busch'!C10 -> 0.055 | F14: =+Huacaraje!C10 -> 0.001514992038
B15: Factor Ʃ(Energía Vendida)/Ʃ(Generación Total - Bruta) | C15: =+Cobija!C14 -> 0.832703842 | D15: =+'Las Misiones'!C11 -> 0.8423761643 | E15: =+'German Busch'!C11 -> 0.918382438 | F15: =+Huacaraje!C11 -> 0.8618397074
B16: Factor Ʃ(Generacion Total - Bruta)/Ʃ(Generación Diesel) | D16: =+'Las Misiones'!C12 -> 0.1605117573
C19: 2018
C20: =+C6 -> Cobija | D20: =+D6 -> Las Misiones | E20: =+E6 -> German Busch | F20: =+F6 -> Huacaraje
B21: Generación Total | C21: =+Cobija!H17 -> 63151.7791 | D21: =+'Las Misiones'!H15 -> 58424.89577 | E21: =+'German Busch'!H14 -> 57411.821 | F21: =+Huacaraje!H14 -> 680.3341417 | G21: MWh
B22: Generación Energía Renovable | C22: =+Cobija!H18 -> 5319.8761 | D22: =+'Las Misiones'!H16 -> 0 | E22: =+'German Busch'!H15 -> 0 | F22: =+Huacaraje!H15 -> 0 | G22: MWh
B23: Generación Fósil | C23: =+Cobija!H19 -> 57831.903 | D23: =+'Las Misiones'!H17 -> 58424.89577 | E23: =+'German Busch'!H16 -> 57411.821 | F23: =+Huacaraje!H16 -> 680.3341417 | G23: MWh
B24: Generación Fósil Gas | D24: =+'Las Misiones'!H18 -> 45374.3242 | G24: MWh
B25: Generación Fósil Diesel | D25: =+'Las Misiones'!H19 -> 13050.57157 | G25: MWh
B26: Combustible Fósil gas natural | D26: =+'Las Misiones'!H20 -> 640147.5933 | E26: =+'German Busch'!H17 -> 787872.444 | G26: MPC
B27: Combustible Fósil Diesel | C27: =+Cobija!H20 -> 15908.519 | D27: =+'Las Misiones'!H21 -> 3617.36598 | F27: =+Huacaraje!H17 -> 212.65 | G27: Miles de Litros
B28: Energía Vendida | C28: =+Cobija!H21 -> 55108.401 | D28: =+'Las Misiones'!H22 -> 52336.572 | E28: =+'German Busch'!H18 -> 52818.988 | F28: =+Huacaraje!H18 -> 596.267 | G28: MWh
B29: Cantidad de Usuarios | C29: =+Cobija!H22 -> 17092 | D29: =+'Las Misiones'!H23 -> 28263 | E29: =+'German Busch'!H19 -> 10771 | F29: =+Huacaraje!H19 -> 505
B30: Consumo por usuario (***) | C30: =+Cobija!H23 -> 268.6851597 | D30: =+'Las Misiones'!H24 -> 154.3141563 | E30: =+'German Busch'!H20 -> 408.651224 | F30: =+Huacaraje!H20 -> 98.39389439 | G30: kWh/usuario-mes
B31: Demanda Máxima | C31: =+Cobija!H24 -> 12.36 | D31: =+'Las Misiones'!H25 -> 11.73985521 | E31: =+'German Busch'!H21 -> 10.25271 | F31: =+Huacaraje!H21 -> 0.159 | G31: MW
B32: Potencia Instalada | C32: =+Cobija!H25 -> 22.56 | D32: =+'Las Misiones'!H26 -> 21.35 | E32: =+'German Busch'!H22 -> 23.2 | F32: =+Huacaraje!H22 -> 0.464 | G32: MW
B33: Pot. Efectiva a Temp. Media | C33: =+Cobija!H26 -> 19.5 | D33: =+'Las Misiones'!H27 -> 19.05 | E33: =+'German Busch'!H23 -> 19.1 | F33: =+Huacaraje!H23 -> 0.398 | G33: MW
B34: Factor de Planta (****) | C34: =+Cobija!H27 -> 0.3385546365 | D34: =+'Las Misiones'!H28 -> 0.3501054409 | E34: =+'German Busch'!H24 -> 0.3431340756 | F34: =+Huacaraje!H24 -> 0.1951349618
B35: (*) Factor Ʃ(Combustible Fósil)/Ʃ(Generación) - Consideramos los tres últimos años, por tecnología
B36: (**) F = C*(1+i)^n - i = ((F/C)^(1/n))-1
B37: (***) Energía Vendida año i / Cantidad Usuarios año i
B38: (****) Generación Fósil año i / ((Pot. Efectiva a Temp. Media año i) * 8760)

Sheet Datos
D2: Potencia Instalada (MW)
B3: Sistema | D3: 2014 | E3: 2015 | F3: 2016 | G3: 2017 | H3: 2018
B4: Cobija | C4: MW | D4: 20.61 | E4: 25 | F4: 25 | G4: 24.16 | H4: 22.56
B5: Riberalta | C5: MW | D5: 10.08 | E5: 10.08 | F5: 15.75 | G5: 16.05 | H5: 16.12
B6: San Ignacio de Velasco | C6: MW | D6: 8.204 | E6: 8.204 | F6: 8.204 | G6: 8.204 | H6: 7.84
B7: Las Misiones | C7: MW | D7: 17.15 | E7: 17.15 | F7: 21.35 | G7: 21.35 | H7: 21.35
B8: Valles Cruceños | C8: MW | D8: 7.64 | E8: 7.64 | F8: 9.64 | G8: 11.638 | H8: 11.638
B9: Camiri | C9: MW | D9: 7.25 | E9: 7.9 | F9: 9.06 | G9: 10.866 | H9: 12.674
B10: German Busch | C10: MW | D10: 21 | E10: 21 | F10: 21 | G10: 21 | H10: 23.2
B11: Bermejo | C11: MW | D11: 10.199 | E11: 9.23 | F11: 12.22 | G11: 15.419 | H11: 14.444
B12: Chiquitos | C12: MW | D12: 5.84 | E12: 5.84 | F12: 5.84 | G12: 5.84 | H12: 7.54
B13: Huacaraje | C13: MW | F13: 0.57 | G13: 0.695 | H13: 0.464
B14: Bella Vista | C14: MW | G14: 0.766 | H14: 1.426
B15: El Sena | C15: MW | E15: 1.42 | F15: 2.216 | G15: 2.216 | H15: 2.216
D18: Potencia Efectiva a temperatura media (MW)
B19: Sistema | D19: 2014 | E19: 2015 | F19: 2016 | G19: 2017 | H19: 2018
B20: Cobija | C20: MW | D20: 15.96 | E20: 19.26 | F20: 19.66 | G20: 19.2 | H20: 19.5
B21: Riberalta | C21: MW | D21: 9.27 | E21: 9.27 | F21: 15.26 | G21: 15.71 | H21: 15.78
B22: San Ignacio de Velasco | C22: MW | D22: 7.101 | E22: 7.101 | F22: 7.101 | G22: 7.101 | H22: 6.792
B23: Las Misiones | C23: MW | D23: 15 | E23: 15 | F23: 19.05 | G23: 19.05 | H23: 19.05
B24: Valles Cruceños | C24: MW | D24: 6.48 | E24: 6.48 | F24: 8.13 | G24: 8.5 | H24: 9.56
B25: Camiri | C25: MW | D25: 6.5 | E25: 7.1 | F25: 8.25 | G25: 10 | H25: 11.75
B26: German Busch | C26: MW | D26: 17.4 | E26: 17.4 | F26: 17.4 | G26: 17.4 | H26: 19.1
B27: Bermejo | C27: MW | D27: 8.15 | E27: 7.35 | F27: 9.6 | G27: 12.4 | H27: 11.55
B28: Chiquitos | C28: MW | D28: 4.84 | E28: 4.84 | F28: 4.84 | G28: 4.84 | H28: 7.2
B29: Huacaraje | C29: MW | F29: 0.13 | G29: 0.648 | H29: 0.398
B30: Bella Vista | C30: MW | G30: 0.668 | H30: 1.111
B31: El Sena | C31: MW | E31: 1.1 | F31: 1.3 | G31: 1.3 | H31: 1.3
D34: Generacion Bruta (MWh)
B35: Sistema | D35: 2014 | E35: 2015 | F35: 2016 | G35: 2017 | H35: 2018
B36: Cobija
B37: Cobija Planta Solar | C37: MWh | D37: 0 | E37: 4794.375501 | F37: 5627.8184 | G37: 5776.1256 | H37: 5319.8761
B38: Cobija Combustioble Fosil | C38: MWh | D38: 52004.8047 | E38: 56054.18129 | F38: 55734.79449 | G38: 56969.076 | H38: 57831.903
B39: Riberalta | C39: MWh | D39: 39754.1004 | E39: 44000 | F39: 47860 | G39: 49359.07 | H39: 54122.22
B40: San Ignacio de Velasco | C40: MWh | D40: 20118.833 | E40: 22009.939 | F40: 23362.836 | G40: 24446.847 | H40: 25906.172
B41: Las Misiones | C41: MWh | D41: 45834.74914 | E41: 51150.008 | F41: 55241.41 | G41: 59494.526 | H41: 58424.89577
B42: Valles Cruceños | C42: MWh | D42: 24962.853 | E42: 27356.741 | F42: 30774.99453 | G42: 33037.838 | H42: 34243.891
B43: Camiri | C43: MWh | D43: 26931.019 | E43: 29769.716 | F43: 31023.122 | G43: 32518.519 | H43: 33217.41659
B44: German Busch | C44: MWh | D44: 57328.465 | E44: 60886.548 | F44: 60284.14 | G44: 55369.353 | H44: 57411.821
B45: Bermejo | C45: MWh | D45: 17625.435 | E45: 24367.994 | F45: 25069.998 | G45: 27032.792 | H45: 28138.757
B46: Chiquitos | C46: MWh | D46: 16495.10006 | E46: 18492.52734 | F46: 19606.297 | G46: 21045.85406 | H46: 22087.9751
B47: Huacaraje | C47: MWh | F47: 190 | G47: 679.305 | H47: 680.3341417
B48: Bella Vista | C48: MWh | F48: 200 | G48: 833.629 | H48: 901.4010573
B49: El Sena
B50: El Sena Planta Solar | C50: MWh | H50: 95.87
B51: El Sena Combustioble Fosil | C51: MWh | D51: 646.0049 | E51: 1248.1834 | F51: 1677.7594 | G51: 1881.0661 | H51: 2213.192
D54: Energia Vendida (MWh)
B55: Sistema | D55: 2014 | E55: 2015 | F55: 2016 | G55: 2017 | H55: 2018
B56: Cobija | C56: MWh | D56: 42283.49869 | E56: 48572.56787 | F56: 51457.802 | G56: 52482.94116 | H56: 55108.401
B57: Riberalta | C57: MWh | D57: 35106.71 | E57: 39792.533 | F57: 42339.17 | G57: 43252.69 | H57: 47213.73
B58: San Ignacio de Velasco | C58: MWh | D58: 17541.051 | E58: 19341.801 | F58: 20551.661 | G58: 21797.431 | H58: 22765.302
B59: Las Misiones | C59: MWh | D59: 37833.119 | E59: 41946.924 | F59: 46627.073 | G59: 48820.517 | H59: 52336.572
B60: Valles Cruceños | C60: MWh | D60: 21245.181 | E60: 23113.885 | F60: 25842.942 | G60: 27838.267 | H60: 28619.4
B61: Camiri | C61: MWh | D61: 23118.461 | E61: 25565.341 | F61: 26937.045 | G61: 27085.859 | H61: 26869.606
B62: German Busch | C62: MWh | D62: 49864.025 | E62: 55849.83 | F62: 55786.36 | G62: 50334.797 | H62: 52818.988
B63: Bermejo | C63: MWh | D63: 19097.197 | E63: 19975.205 | F63: 20153.143 | G63: 21583.881 | H63: 22919.561
B64: Chiquitos | C64: MWh | D64: 13815.353 | E64: 15456.422 | F64: 16493.128 | G64: 17568.087 | H64: 18401.253
B65: Huacaraje | C65: MWh | G65: 575.524 | H65: 596.267
B66: Bella Vista | C66: MWh | G66: 697.504 | H66: 714.517
B67: El Sena | C67: MWh | D67: 327.1148 | E67: 869.546 | F67: 1342.3541 | G67: 1672.1506 | H67: 2105.635
D70: Cantidad usuarios
B71: Sistema | D71: 2014 | E71: 2015 | F71: 2016 | G71: 2017 | H71: 2018
B72: Cobija | D72: 13895 | E72: 14516 | F72: 15424 | G72: 15589 | H72: 17092
B73: Riberalta | D73: 17883 | E73: 19044 | F73: 19779 | G73: 20120 | H73: 21407
B74: San Ignacio de Velasco | D74: 8812 | E74: 9304 | F74: 10720 | G74: 11519 | H74: 12184
B75: Las Misiones | D75: 18188 | E75: 20295 | F75: 22711 | G75: 25616 | H75: 28263
B76: Valles Cruceños | D76: 18160 | E76: 20322 | F76: 21825 | G76: 22984 | H76: 23104
B77: Camiri | D77: 11277 | E77: 11944 | F77: 13230 | G77: 14167 | H77: 14957
B78: German Busch | D78: 8646 | E78: 9004 | F78: 9991 | G78: 10406 | H78: 10771
B79: Bermejo | D79: 10731 | E79: 11261 | F79: 11717 | G79: 12254 | H79: 12941
B80: Chiquitos | D80: 6760 | E80: 7040 | F80: 7747 | G80: 8138 | H80: 8470
B81: Huacaraje | F81: 406 | G81: 490 | H81: 505
B82: Bella Vista | G82: 86.36750867 | H82: 84.81920703
B83: El Sena | D83: 238 | E83: 447 | F83: 647 | G83: 883 | H83: 976
D86: Consumo Combustible Fosil
B87: Sistema | D87: 2014 | E87: 2015 | F87: 2016 | G87: 2017 | H87: 2018
B88: Cobija | C88: Litros | D88: 13406.099 | E88: 14382.121 | F88: 14611.595 | G88: 14853.70102 | H88: 15908.519
B89: Riberalta | C89: Litros | D89: 11267.231 | E89: 15214.2 | F89: 14037.7 | G89: 14174.208 | H89: 15701.603
B90: San Ignacio de Velasco | C90: Litros | D90: 5569.661 | E90: 6107.582 | F90: 6427.6 | G90: 6754.024 | H90: 7250.985
B91: Las Misiones
B92: Las Misiones Gas Natural | C92: mpc | D92: 571963.428 | E92: 612920.549 | F92: 663158.386 | G92: 620081.935 | H92: 640147.5933
B93: Las Misiones Diesel | C93: Litros | D93: 116.316 | E93: 412.529 | F93: 579.412 | G93: 3507.278001 | H93: 3617.36598
B94: Valles Cruceños
B95: Valles Gas Natural | C95: mpc | D95: 284155.401 | E95: 313266.45 | F95: 353773.35 | G95: 355513.2846 | H95: 360015.7066
B96: Valles Diesel | C96: Litros | D96: 0 | E96: 0 | F96: 30.18 | G96: 1.38 | H96: 5.15
B97: Camiri
B98: Camiri Gas Natural | C98: mpc | D98: 294214.1403 | E98: 320543.5509 | F98: 324808.4193 | G98: 317579.2717 | H98: 339259.1858
B99: Camiri Diesel | C99: Litros | D99: 0 | E99: 26.829 | F99: 13.922 | G99: 0 | H99: 0
B100: German Busch | C100: mpc | D100: 744218.667 | E100: 784928.69 | F100: 795439.492 | G100: 748755.086 | H100: 787872.444
B101: Bermejo | C101: mpc | D101: 0 | E101: 282967.2 | F101: 292904.17 | G101: 368663.229 | H101: 401645.362
B102: Chiquitos | C102: mpc | D102: 178080.859 | E102: 202608.063 | F102: 217565.0922 | G102: 229197.2326 | H102: 238334.3366
B103: Huacaraje | C103: Litros | G103: 284.651 | H103: 212.65
B104: Bella Vista | C104: Litros | G104: 337.159 | H104: 263.796
B105: El Sena | C105: Litros | D105: 207.085 | E105: 380.248 | F105: 518.607001 | G105: 584.762 | H105: 697.834
D108: Demanda Maxima
B109: Sistema | D109: 2014 | E109: 2015 | F109: 2016 | G109: 2017 | H109: 2018
B110: Cobija | C110: MW | F110: 11.57 | G110: 11.45 | H110: 12.36
B111: Riberalta | C111: MW | F111: 8.922 | G111: 9.155 | H111: 9.824
B112: San Ignacio de Velasco | C112: MW | F112: 4.57945 | G112: 4.665586 | H112: 5.050678
B113: Las Misiones | C113: MW | F113: 10.15507 | G113: 11.06016641 | H113: 11.73985521
B114: Valles Cruceños | C114: MW | F114: 6.28572 | G114: 6.443231 | H114: 6.340804
B115: Camiri | C115: MW | F115: 6.075 | G115: 6.03993 | H115: 6.378
B116: German Busch | C116: MW | F116: 10.94204 | G116: 9.697378 | H116: 10.25271
B117: Bermejo | C117: MW | F117: 5.91 | G117: 5.96 | H117: 6.1
B118: Chiquitos | C118: MW | F118: 4.09624 | G118: 4.523989 | H118: 4.380218
B119: Huacaraje | C119: MW | G119: 0.169 | H119: 0.159
B120: Bella Vista | C120: MW | G120: 0.195 | H120: 0.202
B121: El Sena | C121: MW | F121: 0.431 | G121: 0.445 | H121: 0.673

Sheet Cobija
B2: FICHA TECNICA DEL SISTEMA AISLADO
B4: Departamento | C4: Pando
B5: Provincia | C5: Nicolas Suarez
B6: Sistema Eléctrico | C6: Cobija
B7: Empresa | C7: ENDE
B8: Combustible | C8: Diesel
B9: Consumo especifico (lts/kWh) (*) | C9: =SUM(F20:H20)/SUM(F19:H19) -> 0.2660662575
B10: Energía Alternativa | C10: Solar
B11: Potencia Instalada MW | C11: 5.1
B12: Potencia a Temp. Media (MW) | C12: 5.1
B13: % Crecimiento Acumulativo Anual (**) | C13: =((H17/D17)^(1/4))-1 -> 0.0497491461
B14: Factor Ʃ(Energía Vendida)/Ʃ(Generación Total - Bruta) | C14: =SUM(D21:H21)/SUM(D17:H17) -> 0.832703842
C16: Unidades | D16: 2014 | E16: =+D16+1 -> 2015 | F16: =+E16+1 -> 2016 | G16: 2017 | H16: 2018 | I16: 2019 | J16: 2020 | K16: 2021 | L16: 2022 | M16: 2023 | N16: 2024 | O16: 2025
B17: Generación Total | C17: MWh | D17: =+D18+D19 -> 52004.8047 | E17: =+E18+E19 -> 60848.55679 | F17: 61362.61289 | G17: 62745.2016 | H17: 63151.7791 | I17: =H17*(1+$C$13) -> 66293.52619 | J17: =I17*(1+$C$13) -> 69591.57251 | K17: 73053.69381 | L17: 76688.0527 | M17: 80503.21784 | N17: 84508.18418 | O17: 88712.39419
B18: Generación Energía Renovable | C18: MWh | D18: =+Datos!D37 -> 0 | E18: =+Datos!E37 -> 4794.375501 | F18: =+Datos!F37 -> 5627.8184 | G18: =+Datos!G37 -> 5776.1256 | H18: =+Datos!H37 -> 5319.8761 | I18: =AVERAGE(F18:H18) -> 5574.6067 | J18: =AVERAGE(G18:I18) -> 5556.869467 | K18: 5483.784089 | L18: 5538.420085 | M18: 5526.35788 | N18: 5516.187351 | O18: 5526.988439
B19: Generación Fósil | C19: MWh | D19: =+Datos!D38 -> 52004.8047 | E19: =+Datos!E38 -> 56054.18129 | F19: =+Datos!F38 -> 55734.79449 | G19: =+Datos!G38 -> 56969.076 | H19: =+Datos!H38 -> 57831.903 | I19: =+I17-I18 -> 60718.91949 | J19: =+J17-J18 -> 64034.70304 | K19: 67569.90972 | L19: 71149.63261 | M19: 74976.85996 | N19: 78991.99683 | O19: 83185.40575
B20: Combustible Fósil | C20: Miles de Litros | D20: =+Datos!D88 -> 13406.099 | E20: =+Datos!E88 -> 14382.121 | F20: =+Datos!F88 -> 14611.595 | G20: =+Datos!G88 -> 14853.70102 | H20: =+Datos!H88 -> 15908.519 | I20: =I19*$C$9 -> 16155.25567 | J20: =J19*$C$9 -> 17037.47379 | K20: 17978.073 | L20: 18930.51647 | M20: 19948.81253 | N20: 21017.10497 | O20: 22132.82959
B21: Energía Vendida | C21: MWh | D21: =+Datos!D56 -> 42283.49869 | E21: =+Datos!E56 -> 48572.56787 | F21: =+Datos!F56 -> 51457.802 | G21: =+Datos!G56 -> 52482.94116 | H21: =+Datos!H56 -> 55108.401 | I21: =+I17*$C$14 -> 55202.87395 | J21: =+J17*$C$14 -> 57949.16979 | K21: 60832.09151 | L21: 63858.43612 | M21: 67035.33878 | N21: 70370.28965 | O21: 73871.15147
B22: Cantidad de Usuarios | D22: =+Datos!D72 -> 13895 | E22: =+Datos!E72 -> 14516 | F22: =+Datos!F72 -> 15424 | G22: =+Datos!G72 -> 15589 | H22: =+Datos!H72 -> 17092
B23: Consumo por usuario (***) | C23: kWh/usuario-mes | D23: =(D21*1000/D22)/12 -> 253.5894128 | E23: =(E21*1000/E22)/12 -> 278.8449979 | F23: =(F21*1000/F22)/12 -> 278.0180347 | G23: =(G21*1000/G22)/12 -> 280.5554192 | H23: =(H21*1000/H22)/12 -> 268.6851597
B24: Demanda Máxima | C24: MW | D24: =+Datos!D110 -> 0 | E24: =+Datos!E110 -> 0 | F24: =+Datos!F110 -> 11.57 | G24: =+Datos!G110 -> 11.45 | H24: =+Datos!H110 -> 12.36
B25: Potencia Instalada | C25: MW | D25: =+Datos!D4 -> 20.61 | E25: =+Datos!E4 -> 25 | F25: =+Datos!F4 -> 25 | G25: =+Datos!G4 -> 24.16 | H25: =+Datos!H4 -> 22.56
B26: Pot. Efectiva a Temp. Media | C26: MW | D26: =+Datos!D20 -> 15.96 | E26: =+Datos!E20 -> 19.26 | F26: =+Datos!F20 -> 19.66 | G26: =+Datos!G20 -> 19.2 | H26: =+Datos!H20 -> 19.5
B27: Factor de Planta (****) | D27: =D19/(D26*8760) -> 0.3719687682 | E27: =E19/(E26*8760) -> 0.3322367156 | F27: =F19/(F26*8760) -> 0.3236225566 | G27: =G19/(G26*8760) -> 0.3387145405 | H27: =H19/(H26*8760) -> 0.3385546365
B29: (*) Factor Ʃ(Combustible Fósil)/Ʃ(Generación) - Consideramos los tres últimos años, por tecnología
B30: (**) F = C*(1+i)^n - i = ((F/C)^(1/n))-1
B31: (***) Energía Vendida año i / Cantidad Usuarios año i
B32: (****) Generación Fósil año i / ((Pot. Efectiva a Temp. Media año i) * 8760)

Sheet Riberalta
B2: FICHA TECNICA DEL SISTEMA AISLADO
B3: Departamento | C3: Beni
B4: Provincia | C4: Vaca Diez
B5: Sistema Eléctrico | C5: Riberalta
B6: Empresa | C6: CER Ltda.
B7: Combustible | C7: Diesel
B8: Consumo especifico (lts/kWh) (*)
B9: % Crecimiento Acumulativo Anual (**)
B10: Factor Ʃ(Energía Vendida)/Ʃ(Generación Total - Bruta)
C12: Unidades | D12: 2014 | E12: =+D12+1 -> 2015 | F12: =+E12+1 -> 2016 | G12: 2017 | H12: 2018 | I12: 2019 | J12: 2020 | K12: 2021 | L12: 2022 | M12: 2023 | N12: 2024 | O12: 2025
B13: Generación Total | C13: MWh
B14: Generación Energía Renovable | C14: MWh
B15: Generación Fósil | C15: MWh | D15: =+Datos!D39 -> 39754.1004 | E15: =+Datos!E39 -> 44000 | F15: =+Datos!F39 -> 47860 | G15: =+Datos!G39 -> 49359.07 | H15: =+Datos!H39 -> 54122.22
B16: Combustible Fósil | C16: Miles de Litros | D16: =+Datos!D89 -> 11267.231 | E16: =+Datos!E89 -> 15214.2 | F16: =+Datos!F89 -> 14037.7 | G16: =+Datos!G89 -> 14174.208 | H16: =+Datos!H89 -> 15701.603
B17: Energía Vendida | C17: MWh | D17: =+Datos!D57 -> 35106.71 | E17: =+Datos!E57 -> 39792.533 | F17: =+Datos!F57 -> 42339.17 | G17: =+Datos!G57 -> 43252.69 | H17: =+Datos!H57 -> 47213.73
B18: Cantidad de Usuarios | D18: =+Datos!D73 -> 17883 | E18: =+Datos!E73 -> 19044 | F18: =+Datos!F73 -> 19779 | G18: =+Datos!G73 -> 20120 | H18: =+Datos!H73 -> 21407
B19: Consumo por usuario (***) | C19: kWh/usuario-mes
B20: Demanda Máxima | C20: MW | D20: =+Datos!D111 -> 0 | E20: =+Datos!E111 -> 0 | F20: =+Datos!F111 -> 8.922 | G20: =+Datos!G111 -> 9.155 | H20: =+Datos!H111 -> 9.824
B21: Potencia Instalada | C21: MW | D21: =+Datos!D5 -> 10.08 | E21: =+Datos!E5 -> 10.08 | F21: =+Datos!F5 -> 15.75 | G21: =+Datos!G5 -> 16.05 | H21: =+Datos!H5 -> 16.12
B22: Pot. Efectiva a Temp. Media | C22: MW | D22: =+Datos!D21 -> 9.27 | E22: =+Datos!E21 -> 9.27 | F22: =+Datos!F21 -> 15.26 | G22: =+Datos!G21 -> 15.71 | H22: =+Datos!H21 -> 15.78
B23: Factor de Planta (****)
B25: (*) Factor Ʃ(Combustible Fósil)/Ʃ(Generación) - Consideramos los tres últimos años, por tecnología
B26: (**) F = C*(1+i)^n - i = ((F/C)^(1/n))-1
B27: (***) Energía Vendida año i / Cantidad Usuarios año i
B28: (****) Generación Fósil año i / ((Pot. Efectiva a Temp. Media año i) * 8760)

Sheet San Ingacio Velasco
B2: FICHA TECNICA DEL SISTEMA AISLADO
B3: Departamento | C3: Santa Cruz
B4: Provincia | C4: Jose Miguel de Velasco
B5: Sistema Eléctrico | C5: San Ignacio de Velasco
B6: Empresa | C6: CRE Ltda.
B7: Combustible | C7: Diesel
B8: Consumo especifico (lts/kWh) (*)
B9: % Crecimiento Acumulativo Anual (**)
B10: Factor Ʃ(Energía Vendida)/Ʃ(Generación Total - Bruta)
C12: Unidades | D12: 2014 | E12: =+D12+1 -> 2015 | F12: =+E12+1 -> 2016 | G12: 2017 | H12: 2018 | I12: 2019 | J12: 2020 | K12: 2021 | L12: 2022 | M12: 2023 | N12: 2024 | O12: 2025
B13: Generación Total | C13: MWh
B14: Generación Energía Renovable | C14: MWh
B15: Generación Fósil | C15: MWh
B16: Combustible Fosil | C16: Miles de litros
B17: Energía Vendida | C17: MWh
B18: Cantidad de Usuarios
B19: Consumo por usuario (***) | C19: kWh/usuario-mes
B20: Demanda Máxima | C20: MW
B21: Potencia Instalada | C21: MW
B22: Pot. Efectiva a Temp. Media | C22: MW
B23: Factor de Planta (****)
B25: (*) Factor Ʃ(Combustible Fósil)/Ʃ(Generación) - Consideramos los tres últimos años, por tecnología
B26: (**) F = C*(1+i)^n - i = ((F/C)^(1/n))-1
B27: (***) Energía Vendida año i / Cantidad Usuarios año i
B28: (****) Generación Fósil año i / ((Pot. Efectiva a Temp. Media año i) * 8760)

Sheet Las Misiones
B2: FICHA TECNICA DEL SISTEMA AISLADO
B3: Departamento | C3: Santa Cruz
B4: Provincia | C4: Guarayos
B5: Sistema Eléctrico | C5: Las Misiones
B6: Empresa | C6: CRE Ltda.
B7: Combustible | C7: Gas/Diesel
B8: Consumo especifico (pc/kWh) (*) | C8: =SUM(F20:H20)/SUM(F18:H18) -> 13.23130259
B9: Consumo especifico (lts/kWh) (*) | C9: 0.2771806554
B10: % Crecimiento Acumulativo Anual (**) | C10: =((H15/D15)^(1/4))-1 -> 0.06255341609
B11: Factor Ʃ(Energía Vendida)/Ʃ(Generación Total - Bruta) | C11: =SUM(D22:H22)/SUM(D15:H15) -> 0.8423761643
B12: Factor Ʃ(Generacion Total - Bruta)/Ʃ(Generación Diesel) | C12: =SUM(F19:H19)/SUM(F15:H15) -> 0.1605117573
C14: Unidades | D14: 2014 | E14: =+D14+1 -> 2015 | F14: =+E14+1 -> 2016 | G14: 2017 | H14: 2018 | I14: 2019 | J14: 2020 | K14: 2021 | L14: 2022 | M14: 2023 | N14: 2024 | O14: 2025
B15: Generación Total | C15: MWh | D15: =+D16+D17 -> 45834.74914 | E15: =+E16+E17 -> 51150.008 | F15: 55241.41 | G15: 59494.526 | H15: 58424.89577 | I15: =H15*(1+$C$10) -> 62079.57258 | J15: =I15*(1+$C$10) -> 65962.86192 | K15: 70089.06427 | L15: 74473.37467 | M15: 79131.93866 | N15: 84081.91175 | O15: 89341.52256
B16: Generación Energía Renovable | C16: MWh
B17: Generación Fósil | C17: MWh | D17: =+Datos!D41 -> 45834.74914 | E17: =+Datos!E41 -> 51150.008 | F17: =+Datos!F41 -> 55241.41 | G17: =+Datos!G41 -> 59494.526 | H17: =+Datos!H41 -> 58424.89577 | I17: =+I15-I16 -> 62079.57258 | J17: =+J15-J16 -> 65962.86192 | K17: 70089.06427 | L17: 74473.37467 | M17: 79131.93866 | N17: 84081.91175 | O17: 89341.52256
B18: Generación Fósil Gas | C18: MWh | D18: =+D17-D19 -> 45415.10947 | E18: =+E17-E19 -> 49661.70428 | F18: 53151.03324 | G18: 46841.12493 | H18: 45374.3242 | I18: =+I17-I19 -> 52115.0713 | J18: =+J17-J19 -> 55375.04704 | K18: 58838.9454 | L18: 62519.52243 | M18: 66430.33213 | N18: 70585.77634 | O18: 75001.15778
B19: Generación Fósil Diesel | C19: MWh | D19: =D21/$C$9 -> 419.6396745 | E19: =E21/$C$9 -> 1488.303718 | F19: 2090.376759 | G19: 12653.40107 | H19: 13050.57157 | I19: =+I15*$C$12 -> 9964.501285 | J19: =+J15*$C$12 -> 10587.81488 | K19: 11250.11887 | L19: 11953.85224 | M19: 12701.60653 | N19: 13496.13541 | O19: 14340.36478
B20: Combustible Fósil gas natural | C20: MPC | D20: =+Datos!D92 -> 571963.428 | E20: =+Datos!E92 -> 612920.549 | F20: =+Datos!F92 -> 663158.386 | G20: =+Datos!G92 -> 620081.935 | H20: =+Datos!H92 -> 640147.5933 | I20: =+I18*$C$8 -> 689550.2777 | J20: =+J18*$C$8 -> 732684.0031 | K20: 778515.8904 | L20: 827214.7189 | M20: 878959.8254 | N20: 933941.7651 | O20: 992363.0129
B21: Combustible Fósil Diesel | C21: Miles de Litros | D21: =+Datos!D93 -> 116.316 | E21: =+Datos!E93 -> 412.529 | F21: =+Datos!F93 -> 579.412 | G21: =+Datos!G93 -> 3507.278001 | H21: =+Datos!H93 -> 3617.36598 | I21: =+I19*$C$9 -> 2761.966997 | J21: =+J19*$C$9 -> 2934.737467 | K21: 3118.315321 | L21: 3313.376597 | M21: 3520.639622 | N21: 3740.867657 | O21: 3974.871708
B22: Energía Vendida | C22: MWh | D22: =+Datos!D59 -> 37833.119 | E22: =+Datos!E59 -> 41946.924 | F22: =+Datos!F59 -> 46627.073 | G22: =+Datos!G59 -> 48820.517 | H22: =+Datos!H59 -> 52336.572 | I22: =I15*$C$11 -> 52294.35224 | J22: =J15*$C$11 -> 55565.54261 | K22: 59041.35712 | L22: 62734.5957 | M22: 66658.85897 | N22: 70828.59831 | O22: 75259.16909
B23: Cantidad de Usuarios | D23: =+Datos!D75 -> 18188 | E23: =+Datos!E75 -> 20295 | F23: =+Datos!F75 -> 22711 | G23: =+Datos!G75 -> 25616 | H23: =+Datos!H75 -> 28263
B24: Consumo por usuario (***) | C24: kWh/usuario-mes | D24: =(D22*1000/D23)/12 -> 173.3428588 | E24: =(E22*1000/E23)/12 -> 172.2383346 | F24: =(F22*1000/F23)/12 -> 171.0884337 | G24: =(G22*1000/G23)/12 -> 158.8216902 | H24: =(H22*1000/H23)/12 -> 154.3141563
B25: Demanda Máxima | C25: MW | D25: =+Datos!D113 -> 0 | E25: =+Datos!E113 -> 0 | F25: =+Datos!F113 -> 10.15507 | G25: =+Datos!G113 -> 11.06016641 | H25: =+Datos!H113 -> 11.73985521
B26: Potencia Instalada | C26: MW | D26: =+Datos!D7 -> 17.15 | E26: =+Datos!E7 -> 17.15 | F26: =+Datos!F7 -> 21.35 | G26: =+Datos!G7 -> 21.35 | H26: =+Datos!H7 -> 21.35
B27: Pot. Efectiva a Temp. Media | C27: MW | D27: =+Datos!D23 -> 15 | E27: =+Datos!E23 -> 15 | F27: =+Datos!F23 -> 19.05 | G27: =+Datos!G23 -> 19.05 | H27: =+Datos!H23 -> 19.05
B28: Factor de Planta (****) | D28: =D17/(D27*8760) -> 0.3488184866 | E28: =E17/(E27*8760) -> 0.3892694673 | F28: =F17/(F27*8760) -> 0.3310287156 | G28: =G17/(G27*8760) -> 0.3565150949 | H28: =H17/(H27*8760) -> 0.3501054409
B30: (*) Factor Ʃ(Combustible Fósil)/Ʃ(Generación) - Consideramos los tres últimos años, por tecnología
B31: (**) F = C*(1+i)^n - i = ((F/C)^(1/n))-1
B32: (***) Energía Vendida año i / Cantidad Usuarios año i
B33: (****) Generación Fósil año i / ((Pot. Efectiva a Temp. Media año i) * 8760)

Sheet Valles
B2: FICHA TECNICA DEL SISTEMA AISLADO
B4: Departamento | C4: Santa Cruz
B5: Provincia | C5: Vallegrande
B6: Sistema Eléctrico | C6: Valles Cruceños
B7: Empresa | C7: CRE Ltda.
B8: Combustible | C8: Gas
B9: Consumo especifico (pc/kWh) (*)
B10: Consumo especifico (lts/kWh) (*)
B11: % Crecimiento Acumulativo Anual (**)
B12: Factor Ʃ(Energía Vendida)/Ʃ(Generación Total - Bruta)
B13: Factor Ʃ(Generacion Total - Bruta)/Ʃ(Generación Diesel)
C15: Unidades | D15: 2014 | E15: =+D15+1 -> 2015 | F15: =+E15+1 -> 2016 | G15: 2017 | H15: 2018 | I15: 2019 | J15: 2020 | K15: 2021 | L15: 2022 | M15: 2023 | N15: 2024 | O15: 2025
B16: Generación Total | C16: MWh
B17: Generación Energía Renovable | C17: MWh
B18: Generación Fósil | C18: MWh
B19: Generación Fósil Gas | C19: MWh
B20: Generación Fósil Diesel | C20: MWh
B21: Combustible Fósil gas natural | C21: MPC
B22: Combustible Fósil Diesel | C22: Miles de Litros
B23: Energía Vendida | C23: MWh
B24: Cantidad de Usuarios
B25: Consumo por usuario (***) | C25: kWh/usuario-mes
B26: Demanda Máxima | C26: MW
B27: Potencia Instalada | C27: MW
B28: Pot. Efectiva a Temp. Media | C28: MW
B29: Factor de Planta (****)
B31: (*) Factor Ʃ(Combustible Fósil)/Ʃ(Generación) - Consideramos los tres últimos años, por tecnología
B32: (**) F = C*(1+i)^n - i = ((F/C)^(1/n))-1
B33: (***) Energía Vendida año i / Cantidad Usuarios año i
B34: (****) Generación Fósil año i / ((Pot. Efectiva a Temp. Media año i) * 8760)

Sheet Camiri
B2: FICHA TECNICA DEL SISTEMA AISLADO
B4: Departamento | C4: Santa Cruz
B5: Provincia | C5: Cordillera
B6: Sistema Eléctrico | C6: Camiri
B7: Empresa | C7: CRE Ltda.
B8: Combustible | C8: Gas
B9: Consumo especifico (pc/kWh) (*)
B10: Consumo especifico (lts/kWh) (*)
B11: % Crecimiento Acumulativo Anual (**)
B12: Factor Ʃ(Energía Vendida)/Ʃ(Generación Total - Bruta)
B13: Factor Ʃ(Generacion Total - Bruta)/Ʃ(Generación Diesel)
C15: Unidades | D15: 2014 | E15: =+D15+1 -> 2015 | F15: =+E15+1 -> 2016 | G15: 2017 | H15: 2018 | I15: 2019 | J15: 2020 | K15: 2021 | L15: 2022 | M15: 2023 | N15: 2024 | O15: 2025
B16: Generación Total | C16: MWh
B17: Generación Energía Renovable | C17: MWh
B18: Generación Fósil | C18: MWh
B19: Combustible Fosil gas natural | C19: MPC
B20: Combustible Fosil Diesel | C20: Miles de Litros
B21: Energía Vendida | C21: MWh
B22: Cantidad de Usuarios
B23: Consumo por usuario (***) | C23: kWh/usuario-mes
B24: Demanda Máxima | C24: MW
B25: Potencia Instalada | C25: MW
B26: Pot. Efectiva a Temp. Media | C26: MW
B27: Factor de Planta (****)
B29: (*) Factor Ʃ(Combustible Fósil)/Ʃ(Generación) - Consideramos los tres últimos años, por tecnología
B30: (**) F = C*(1+i)^n - i = ((F/C)^(1/n))-1
B31: (***) Energía Vendida año i / Cantidad Usuarios año i
B32: (****) Generación Fósil año i / ((Pot. Efectiva a Temp. Media año i) * 8760)

Sheet German Busch
B2: FICHA TECNICA DEL SISTEMA AISLADO
B4: Departamento | C4: Santa Cruz
B5: Provincia | C5: German Bush
B6: Sistema Eléctrico | C6: German Busch
B7: Empresa | C7: CRE Ltda.
B8: Combustible | C8: Gas
B9: Consumo especifico (pc/kWh) (*) | C9: =SUM(F17:H17)/SUM(F16:H16) -> 13.47506885
B10: % Crecimiento Acumulativo Anual (**) | C10: 0.055
B11: Factor Ʃ(Energía Vendida)/Ʃ(Generación Total - Bruta) | C11: =SUM(F18:H18)/SUM(F14:H14) -> 0.918382438
C13: Unidades | D13: 2014 | E13: =+D13+1 -> 2015 | F13: =+E13+1 -> 2016 | G13: 2017 | H13: 2018 | I13: 2019 | J13: 2020 | K13: 2021 | L13: 2022 | M13: 2023 | N13: 2024 | O13: 2025
B14: Generación Total | C14: MWh | D14: =+D15+D16 -> 57328.465 | E14: =+E15+E16 -> 60886.548 | F14: 60284.14 | G14: 55369.353 | H14: 57411.821 | I14: =(H14*(1+$C$10)) -> 60569.47115 | J14: =(I14*(1+$C$10)) -> 63900.79207 | K14: 67415.33563 | L14: 71123.17909 | M14: 75034.95394 | N14: 79161.87641 | O14: 83515.77961
B15: Generación Energía Renovable | C15: MWh
B16: Generación Fósil | C16: MWh | D16: =+Datos!D44 -> 57328.465 | E16: =+Datos!E44 -> 60886.548 | F16: =+Datos!F44 -> 60284.14 | G16: =+Datos!G44 -> 55369.353 | H16: =+Datos!H44 -> 57411.821 | I16: =+I14-I15 -> 60569.47115 | J16: =+J14-J15 -> 63900.79207 | K16: 67415.33563 | L16: 71123.17909 | M16: 75034.95394 | N16: 79161.87641 | O16: 83515.77961
B17: Combustible Fósil gas natural | C17: MPC | D17: =+Datos!D100 -> 744218.667 | E17: =+Datos!E100 -> 784928.69 | F17: =+Datos!F100 -> 795439.492 | G17: =+Datos!G100 -> 748755.086 | H17: =+Datos!H100 -> 787872.444 | I17: =+I16*$C$11 -> 55625.93859 | J17: =+J16*$C$11 -> 58685.36521 | K17: 61913.06029 | L17: 65318.27861 | M17: 68910.78393 | N17: 72700.87705 | O17: 76699.42529
B18: Energía Vendida | C18: MWh | D18: =+Datos!D62 -> 49864.025 | E18: =+Datos!E62 -> 55849.83 | F18: =+Datos!F62 -> 55786.36 | G18: =+Datos!G62 -> 50334.797 | H18: =+Datos!H62 -> 52818.988 | I18: =I16*$C$11 -> 55625.93859 | J18: =J16*$C$11 -> 58685.36521 | K18: 61913.06029 | L18: 65318.27861 | M18: 68910.78393 | N18: 72700.87705 | O18: 76699.42529
B19: Cantidad de Usuarios | D19: =+Datos!D78 -> 8646 | E19: =+Datos!E78 -> 9004 | F19: =+Datos!F78 -> 9991 | G19: =+Datos!G78 -> 10406 | H19: =+Datos!H78 -> 10771
B20: Consumo por usuario (***) | C20: kWh/usuario-mes | D20: =(D18*1000/D19)/12 -> 480.6078437 | E20: =(E18*1000/E19)/12 -> 516.898323 | F20: =(F18*1000/F19)/12 -> 465.3051079 | G20: =(G18*1000/G19)/12 -> 403.0911413 | H20: =(H18*1000/H19)/12 -> 408.651224
B21: Demanda Máxima | C21: MW | D21: =+Datos!D116 -> 0 | E21: =+Datos!E116 -> 0 | F21: =+Datos!F116 -> 10.94204 | G21: =+Datos!G116 -> 9.697378 | H21: =+Datos!H116 -> 10.25271
B22: Potencia Instalada | C22: MW | D22: =+Datos!D10 -> 21 | E22: =+Datos!E10 -> 21 | F22: =+Datos!F10 -> 21 | G22: =+Datos!G10 -> 21 | H22: =+Datos!H10 -> 23.2
B23: Pot. Efectiva a Temp. Media | C23: MW | D23: =+Datos!D26 -> 17.4 | E23: =+Datos!E26 -> 17.4 | F23: =+Datos!F26 -> 17.4 | G23: =+Datos!G26 -> 17.4 | H23: =+Datos!H26 -> 19.1
B24: Factor de Planta (****) | D24: =D14/(D23*8760) -> 0.3761118 | E24: 0.3994551252 | F24: 0.3955029392 | G24: 0.3632587585 | H24: =H14/(H23*8760) -> 0.3431340756
B26: (*) Factor Ʃ(Combustible Fósil)/Ʃ(Generación) - Consideramos los tres últimos años, por tecnología
B27: (**) F = C*(1+i)^n - i = ((F/C)^(1/n))-1 - Cuando el crecimiento NO es un datos consistente, asumimos el promedio de los SA
B28: (***) Energía Vendida año i / Cantidad Usuarios año i
B29: (****) Generación Fósil año i / ((Pot. Efectiva a Temp. Media año i) * 8760)

Sheet Bermejo
B2: FICHA TECNICA DEL SISTEMA AISLADO
B4: Departamento | C4: Tarija
B5: Provincia | C5: Aniceto Arce
B6: Sistema Eléctrico | C6: Bermejo
B7: Empresa | C7: SETAR
B8: Combustible | C8: Gas
B9: Consumo especifico (pc/kWh) (*)
B10: % Crecimiento Acumulativo Anual (**)
B11: Factor Ʃ(Energía Vendida)/Ʃ(Generación Total - Bruta)
C13: Unidades | D13: 2014 | E13: =+D13+1 -> 2015 | F13: =+E13+1 -> 2016 | G13: 2017 | H13: 2018 | I13: 2019 | J13: 2020 | K13: 2021 | L13: 2022 | M13: 2023 | N13: 2024 | O13: 2025
B14: Generación Total | C14: MWh
B15: Generación Energía Renovable | C15: MWh
B16: Generación Fósil | C16: MWh
B17: Combustible Fósil | C17: MPC
B18: Energía Vendida | C18: MWh
B19: Cantidad de Usuarios
B20: Consumo por usuario (***) | C20: kWh/usuario-mes
B21: Demanda Máxima | C21: MW
B22: Potencia Instalada | C22: MW
B23: Pot. Efectiva a Temp. Media | C23: MW
B24: Factor de Planta (****)
B26: (*) Factor Ʃ(Combustible Fósil)/Ʃ(Generación) - Consideramos los tres últimos años, por tecnología
B27: (**) F = C*(1+i)^n - i = ((F/C)^(1/n))-1 - Cuando el crecimiento NO es un datos consistente, asumimos el promedio de los SA
B28: (***) Energía Vendida año i / Cantidad Usuarios año i
B29: (****) Generación Fósil año i / ((Pot. Efectiva a Temp. Media año i) * 8760)

Sheet Chiquitos
B2: FICHA TECNICA DEL SISTEMA AISLADO
B4: Departamento | C4: Santa Cruz
B5: Provincia | C5: Chiquitos
B6: Sistema Eléctrico | C6: Roboré y Santiago de Chiquitos
B7: Empresa | C7: CRE Ltda.
B8: Combustible | C8: Gas
B9: Consumo especifico (pc/kWh) (*)
B10: % Crecimiento Acumulativo Anual (**)
B11: Factor Ʃ(Energía Vendida)/Ʃ(Generación Total - Bruta)
C13: Unidades | D13: 2014 | E13: =+D13+1 -> 2015 | F13: =+E13+1 -> 2016 | G13: 2017 | H13: 2018 | I13: 2019 | J13: 2020 | K13: 2021 | L13: 2022 | M13: 2023 | N13: 2024 | O13: 2025
B14: Generación Total | C14: MWh
B15: Generación Energía Renovable | C15: MWh
B16: Generación Fósil | C16: MWh
B17: Combustible Fósil | C17: MPC
B18: Energía Vendida | C18: MWh
B19: Cantidad de Usuarios
B20: Consumo por usuario (***) | C20: kWh/usuario-mes
B21: Demanda Máxima | C21: MW
B22: Potencia Instalada | C22: MW
B23: Pot. Efectiva a Temp. Media | C23: MW
B24: Factor de Planta (****)
B26: (*) Factor Ʃ(Combustible Fósil)/Ʃ(Generación) - Consideramos los tres últimos años, por tecnología
B27: (**) F = C*(1+i)^n - i = ((F/C)^(1/n))-1 - Cuando el crecimiento NO es un datos consistente, asumimos el promedio de los SA
B28: (***) Energía Vendida año i / Cantidad Usuarios año i
B29: (****) Generación Fósil año i / ((Pot. Efectiva a Temp. Media año i) * 8760)

Sheet Huacaraje
B2: FICHA TECNICA DEL SISTEMA AISLADO
B4: Departamento | C4: Beni
B5: Provincia | C5: Itenez
B6: Sistema Eléctrico | C6: Huacaraje
B7: Empresa | C7: ENDE DELBENI S.A.M.
B8: Combustible | C8: Diesel
B9: Consumo especifico (lts/kWh) (*) | C9: =SUM(G17:H17)/SUM(G16:H16) -> 0.3657595495
B10: % Crecimiento Acumulativo Anual (**) | C10: =H14/G14-1 -> 0.001514992038 | D10: Se debe tomar una decisión
B11: Factor Ʃ(Energía Vendida)/Ʃ(Generación Total - Bruta) | C11: =SUM(G18:H18)/SUM(G14:H14) -> 0.8618397074
C13: Unidades | D13: 2014 | E13: =+D13+1 -> 2015 | F13: =+E13+1 -> 2016 | G13: 2017 | H13: 2018 | I13: 2019 | J13: 2020 | K13: 2021 | L13: 2022 | M13: 2023 | N13: 2024 | O13: 2025
B14: Generación Total | C14: MWh | D14: =+D15+D16 -> 0 | E14: =+E15+E16 -> 0 | F14: 190 | G14: 679.305 | H14: 680.3341417 | I14: =+H14*(1+$C$10) -> 681.3648425 | J14: =+I14*(1+$C$10) -> 682.3971048 | K14: 683.430931 | L14: 684.4663234 | M14: 685.5032844 | N14: 686.5418164 | O14: 687.5819218
B15: Generación Energía Renovable | C15: MWh
B16: Generación Fósil | C16: MWh | D16: =+Datos!D47 -> 0 | E16: =+Datos!E47 -> 0 | F16: =+Datos!F47 -> 190 | G16: =+Datos!G47 -> 679.305 | H16: =+Datos!H47 -> 680.3341417 | I16: =+I14-I15 -> 681.3648425 | J16: =+J14-J15 -> 682.3971048 | K16: 683.430931 | L16: 684.4663234 | M16: 685.5032844 | N16: 686.5418164 | O16: 687.5819218
B17: Combustible Fósil | C17: Miles de Litros | D17: =+Datos!D103 -> 0 | E17: =+Datos!E103 -> 0 | F17: =+Datos!F103 -> 0 | G17: =+Datos!G103 -> 284.651 | H17: =+Datos!H103 -> 212.65 | I17: =+I16*$C$9 -> 249.2156979 | J17: =+J16*$C$9 -> 249.5932577 | K17: 249.9713895 | L17: 250.3500941 | M17: 250.7293725 | N17: 251.1092255 | O17: 251.489654
B18: Energía Vendida | C18: MWh | D18: =+Datos!D65 -> 0 | E18: =+Datos!E65 -> 0 | F18: =+Datos!F65 -> 0 | G18: =+Datos!G65 -> 575.524 | H18: =+Datos!H65 -> 596.267 | I18: =I16*$C$11 -> 587.2272765 | J18: =J16*$C$11 -> 588.1169211 | K18: 589.0079136 | L18: 589.9002559 | M18: 590.7939501 | N18: 591.6889982 | O18: 592.5854023
B19: Cantidad de Usuarios | D19: =+Datos!D81 -> 0 | E19: =+Datos!E81 -> 0 | F19: =+Datos!F81 -> 406 | G19: =+Datos!G81 -> 490 | H19: =+Datos!H81 -> 505
B20: Consumo por usuario (***) | C20: kWh/usuario-mes | F20: =(F18*1000/F19)/12 -> 0 | G20: =(G18*1000/G19)/12 -> 97.87823129 | H20: =(H18*1000/H19)/12 -> 98.39389439
B21: Demanda Máxima | C21: MW | D21: =+Datos!D119 -> 0 | E21: =+Datos!E119 -> 0 | F21: =+Datos!F119 -> 0 | G21: =+Datos!G119 -> 0.169 | H21: =+Datos!H119 -> 0.159
B22: Potencia Instalada | C22: MW | D22: =+Datos!D13 -> 0 | E22: =+Datos!E13 -> 0 | F22: =+Datos!F13 -> 0.57 | G22: =+Datos!G13 -> 0.695 | H22: =+Datos!H13 -> 0.464
B23: Pot. Efectiva a Temp. Media | C23: MW | D23: =+Datos!D29 -> 0 | E23: =+Datos!E29 -> 0 | F23: =+Datos!F29 -> 0.13 | G23: =+Datos!G29 -> 0.648 | H23: =+Datos!H29 -> 0.398
B24: Factor de Planta (****) | F24: =F16/(F23*8760) -> 0.1668422901 | G24: =G16/(G23*8760) -> 0.1196701125 | H24: =H16/(H23*8760) -> 0.1951349618
B26: (*) Factor Ʃ(Combustible Fósil)/Ʃ(Generación) - Consideramos los tres últimos años, por tecnología
B27: (**) F = C*(1+i)^n - i = ((F/C)^(1/n))-1 - Cuando el crecimiento NO es un datos consistente, asumimos el promedio de los SA
B28: (***) Energía Vendida año i / Cantidad Usuarios año i
B29: (****) Generación Fósil año i / ((Pot. Efectiva a Temp. Media año i) * 8760)

Sheet Bella Vista
B2: FICHA TECNICA DEL SISTEMA AISLADO
B4: Departamento | C4: Beni
B5: Provincia | C5: Itenez
B6: Sistema Eléctrico | C6: Bella Vista
B7: Empresa | C7: ENDE DELBENI S.A.M.
B8: Combustible | C8: Diesel
B9: Consumo especifico (lts/kWh) (*)
B10: % Crecimiento Acumulativo Anual (**)
B11: Factor Ʃ(Energía Vendida)/Ʃ(Generación Total - Bruta)
C13: Unidades | D13: 2014 | E13: =+D13+1 -> 2015 | F13: =+E13+1 -> 2016 | G13: 2017 | H13: 2018 | I13: 2019 | J13: 2020 | K13: 2021 | L13: 2022 | M13: 2023 | N13: 2024 | O13: 2025
B14: Generación Total | C14: MWh
B15: Generación Energía Renovable | C15: MWh
B16: Generación Fósil | C16: MWh
B17: Combustible Fósil | C17: Miles de Litros
B18: Energía Vendida | C18: MWh
B19: Cantidad de Usuarios
B20: Consumo por usuario (***) | C20: kWh/usuario-mes
B21: Demanda Máxima | C21: MW
B22: Potencia Instalada | C22: MW
B23: Pot. Efectiva a Temp. Media | C23: MW
B24: Factor de Planta (****)
B26: (*) Factor Ʃ(Combustible Fósil)/Ʃ(Generación) - Consideramos los tres últimos años, por tecnología
B27: (**) F = C*(1+i)^n - i = ((F/C)^(1/n))-1 - Cuando el crecimiento NO es un datos consistente, asumimos el promedio de los SA
B28: (***) Energía Vendida año i / Cantidad Usuarios año i
B29: (****) Generación Fósil año i / ((Pot. Efectiva a Temp. Media año i) * 8760)

Sheet El Sena
B2: FICHA TECNICA DEL SISTEMA AISLADO
S3: IPPC - DATA
B4: Departamento | C4: Pando | S4: EFCO2,GAS | T4: 0.0543 | U4: tCO2/GJ | V4: kgCO2/MJ | W4: Source for Gas EF - IPCC 2006 (Lower value)
B5: Provincia | C5: Madre de Dios | F5: Generacion Solar Octubre (kWh) | G5: 18719.23 | S5: EFCO2,DIESEL | T5: 0.0726 | U5: tCO2/GJ | V5: kgCO2/MJ | W5: Source for Diesel EF - IPCC 2006 (Lower value)
B6: Sistema Eléctrico | C6: El Sena | F6: Generacion Solar Noviembre (kWh) | G6: 15162.55 | U6: Value | V6: Units
B7: Empresa | C7: ENDE | G7: =AVERAGE(G5:G6) -> 16940.89 | H7: =+G7/(C11*1000*8760) -> 0.004834728881 | U7: 0.00105506 | V7: MJ/Btu
B8: Combustible | C8: Diesel | S8: Conversion factors | U8: 1.05506e-06 | V8: GJ/Btu
B9: Energía Alternativa | C9: Solar
B10: Potencia Instalada MW | C10: 0.4
B11: Potencia a Temp. Media (MW) | C11: =+C10 -> 0.4
B12: Consumo especifico (lts/kWh) (*)
B13: % Crecimiento Acumulativo Anual (**) | S13: Emission Factors
B14: Factor Ʃ(Energía Vendida)/Ʃ(Generación Total - Bruta) | T14: CO2 Emissions Factor Natural Gas | U14: =T4*1000000 -> 54300 | V14: gCO2/GJ
T15: CO2 Emissions Factor Natural Gas (g/BTU) | U15: =U14*U8 -> 0.057289758 | V15: gCO2/BTU
C16: Unidades | D16: 2014 | E16: =+D16+1 -> 2015 | F16: =+E16+1 -> 2016 | G16: 2017 | H16: 2018 | I16: 2019 | J16: 2020 | K16: 2021 | L16: 2022 | M16: 2023 | N16: 2024 | O16: 2025
B17: Generación Total | C17: MWh
B18: Generación Energía Renovable | C18: MWh
B19: Generación Fósil | C19: MWh
B20: Combustible Fósil | C20: Miles de Litros
B21: Energía Vendida | C21: MWh
B22: Cantidad de Usuarios
B23: Consumo por usuario (***) | C23: kWh/usuario-mes
B24: Demanda Máxima | C24: MW
B25: Potencia Instalada | C25: MW
B26: Pot. Efectiva a Temp. Media | C26: MW
B27: Factor de Planta (****)
B29: (*) Factor Ʃ(Combustible Fósil)/Ʃ(Generación) - Consideramos los tres últimos años, por tecnología
B30: (**) F = C*(1+i)^n - i = ((F/C)^(1/n))-1 - Cuando el crecimiento NO es un datos consistente, asumimos el promedio de los SA
B31: (***) Energía Vendida año i / Cantidad Usuarios año i
B32: (****) Generación Fósil año i / ((Pot. Efectiva a Temp. Media año i) * 8760)
